Workbook

Sheet меню с 7 до 11 лет
A2: День: понедельник | E2: Сезон: 01.09 - 01.03 (2021 - 2022 г)
A3: Неделя: 1 | E3: Возраст: с 7 до 11 лет
A4: № | B4: Наименование блюда | E4: масса | F4: Пищевые вещества (г) | I4: энерге- | J4: Витамины | M4: Минеральные вещества (мг)
A5: рец. | E5: порций | F5: Б | G5: Ж | H5: У | I5: тическая | J5: В1 | K5: С | L5: А | M5: Са | N5: Р | O5: Мg | P5: Fe
I6: ценность
B7: Завтрак
A8: 649.09 | B8: Морковь отварная с растительным маслом | E8: 30 | F8: 0.52 | G8: 1.93 | H8: 2.35 | I8: 27.96 | J8: 0.08 | K8: 0.82 | L8: 27.55 | M8: 216.67 | N8: 295.62 | O8: 39.05 | P8: 0.72
A9: 1 | B9: Котлеты из говядины | E9: 60/40 | F9: 16.2 | G9: 14.5 | H9: 13.9 | I9: 252 | J9: 0.07 | K9: 0.29 | L9: 40.5 | M9: 34.65 | N9: 162.2 | O9: 28.56 | P9: 1.48
A10: 78.03 | B10: Каша ячневая рассыпчатая | E10: 150 | F10: 14.6 | G10: 24.1 | H10: 2.6 | I10: 285 | J10: 0.07 | K10: 0.22 | L10: 40 | M10: 100.23 | N10: 3 | O10: 16.81 | P10: 2.5
A11: 285 | B11: Чай с лимоном и сахаром | E11: 200 | F11: 0.1 | G11: 0 | H11: 9.3 | I11: 37 | J11: 0 | K11: 1.12 | L11: 0 | M11: 2.73 | N11: 0 | O11: 0.73 | P11: 0.06
A12: 420.06 | B12: Хлеб пшеничный, ржаной (для детского питания) | E12: 50 | F12: 2.9 | G12: 0 | H12: 18.9 | I12: 95.6 | J12: 0.09 | K12: 0 | L12: 0 | M12: 10.2 | N12: 35.8 | O12: 14.2 | P12: 1
A13: 155.02 | B13: Кисломолочный продукт | E13: 200 | F13: 3 | G13: 3 | H13: 5 | I13: 60 | J13: 0 | K13: 0 | L13: 10.9 | M13: 0 | N13: 0 | O13: 0 | P13: 0
B14: Итого за завтрак | F14: =SUM(F8:F13) -> 37.32 | G14: 43.53 | H14: 52.05 | I14: 757.56 | J14: 0.31 | K14: 2.45 | L14: 118.95 | M14: 364.48 | N14: 496.62 | O14: 99.35 | P14: 5.76
B15: Обед
A16: 25.09 | B16: Салат из свеклы с яблоками | E16: 60 | F16: 1 | G16: 6 | H16: 4 | I16: 76 | J16: 0.03 | K16: 5.64 | L16: 0 | M16: 13.2 | N16: 24.49 | O16: 11.08 | P16: 0.47
A17: 129.08 | B17: Суп картофельный с горохом и гренками | E17: 200 | F17: 12 | G17: 7 | H17: 13 | I17: 162 | J17: 0.08 | K17: 2.99 | L17: 25.76 | M17: 20.55 | N17: 134.18 | O17: 23.56 | P17: 2.15
A18: 2 | B18: Тефтели мясные пф | E18: 60/40 | F18: 13 | G18: 16 | H18: 39 | I18: 350 | J18: 0.08 | K18: 1.35 | L18: 0 | M18: 14.02 | N18: 178.97 | O18: 41.8 | P18: 1.97
A19: 118.08 | B19: Рагу овощное | E19: 160 | F19: 9 | G19: 11 | H19: 2 | I19: 144 | J19: 0.04 | K19: 1.62 | L19: 0 | M19: 8.79 | N19: 101.41 | O19: 15.23 | P19: 1.46
A20: 305.11 | B20: Витаминизированный кисель | E20: 200 | F20: 0 | G20: 0 | H20: 16 | I20: 67 | J20: 0.01 | K20: 20.2 | L20: 0 | M20: 6.76 | N20: 4.4 | O20: 3.6 | P20: 0.92
A21: 420.09 | B21: Хлеб пшеничный (для детского питания) | E21: 25 | F21: 2 | G21: 0 | H21: 12 | I21: 59 | J21: 0.04 | K21: 0 | L21: 0 | M21: 5.75 | N21: 21.75 | O21: 8.25 | P21: 0.5
A22: 421 | B22: Хлеб ржаной (для детского питания) | E22: 25 | F22: 2 | G22: 0 | H22: 10 | I22: 50 | J22: 0.04 | K22: 0 | L22: 0 | M22: 7.25 | N22: 32.5 | O22: 10.5 | P22: 0.9
B23: Итого за обед | F23: =SUM(F16:F22) -> 39 | G23: 40 | H23: 96 | I23: 908 | J23: 0.32 | K23: 31.8 | L23: 25.76 | M23: 76.32 | N23: 497.7 | O23: 114.02 | P23: 8.37
B24: Итого за день | F24: 69.9 | G24: 48 | H24: 175.9 | I24: 1442.6 | J24: 0.71 | K24: 31.27 | L24: 124.2 | M24: 312.17 | N24: 818.22 | O24: 183.74 | P24: 10.1
A35: День: вторник | E35: Сезон: 01.09 - 01.03 (2021 - 2022 г)
A36: Неделя: 1 | E36: Возраст: с 7 до 11 лет
A38: № | B38: Наименование блюда | E38: масса | F38: Пищевые вещества (г) | I38: энерге- | J38: Витамины | M38: Минеральные вещества (мг)
A39: рец. | E39: порций | F39: Б | G39: Ж | H39: У | I39: тическая | J39: В1 | K39: С | L39: А | M39: Са | N39: Р | O39: Мg | P39: Fe
I40: ценность
B41: Завтрак
A42: 3 | B42: Фрикадельки мясные пф | E42: 50/40 | F42: 16.5 | G42: 24.9 | H42: 9 | I42: 325 | J42: 0.1 | K42: 18.32 | L42: 51.16 | M42: 56.6 | N42: 197.58 | O42: 39 | P42: 2.25
A43: 610.03 | B43: Рис припущенный | E43: 150 | F43: 7.2 | G43: 6 | H43: 43.2 | I43: 254.4 | J43: 0.108 | K43: 0 | L43: 28.8 | M43: 13.38 | N43: 55.51 | O43: 9.82 | P43: 0.99
A44: 282.11 | B44: Чай витаминизированный | E44: 200 | F44: 1 | G44: 2 | H44: 12 | I44: 70 | J44: 0.02 | K44: 0.65 | L44: 10 | M44: 60.3 | N44: 45 | O44: 7 | P44: 0.08
A45: 420.06 | B45: Хлеб пшеничный, ржаной | E45: 50 | F45: 2.7 | G45: 0 | H45: 18.7 | I45: 94.7 | J45: 0.07 | K45: 0 | L45: 0 | M45: 9.2 | N45: 34.8 | O45: 13.2 | P45: 0.8
B46: Фрукты | E46: 200 | F46: 1 | G46: 0 | H46: 7 | I46: 34 | J46: 0.05 | K46: 34.2 | L46: 0 | M46: 31.5 | N46: 15.3 | O46: 9.9 | P46: 0.09
B47: Итого за завтрак | F47: =SUM(F42:F46) -> 28.4 | G47: 32.9 | H47: 89.9 | I47: 778.1 | J47: 0.348 | K47: 53.17 | L47: 89.96 | M47: 170.98 | N47: 348.19 | O47: 78.92 | P47: 4.21
B48: Обед
A49: 53.42 | B49: Щи из свежей капусты | E49: 200/10 | F49: 15 | G49: 11.25 | H49: 15 | I49: 225 | J49: 0.15 | K49: 26.8 | L49: 9.51 | M49: 41.35 | N49: 198.48 | O49: 42.95 | P49: 3.15
A50: 1 | B50: Котлеты | E50: 60/40 | F50: 9 | G50: 11 | H50: 2 | I50: 144 | J50: 0.04 | K50: 1.62 | L50: 0 | M50: 8.79 | N50: 101.41 | O50: 15.23 | P50: 1.46
A51: 211.05 | B51: Макаронные изделия отварные с маслом | E51: 150 | F51: 8.1 | G51: 7.2 | H51: 48.2 | I51: 295 | J51: 0.09 | K51: 0 | L51: 0 | M51: 14.03 | N51: 0 | O51: 11.09 | P51: 1.12
A52: 283 | B52: Чай с сахаром | E52: 200 | F52: 0 | G52: 0 | H52: 9.1 | I52: 35 | J52: 0 | K52: 0 | L52: 0 | M52: 0.26 | N52: 0 | O52: 0 | P52: 0.03
A53: 420.02 | B53: Хлеб пшеничный (для детского питания) | E53: 25 | F53: 2 | G53: 0 | H53: 12 | I53: 59 | J53: 0.04 | K53: 0 | L53: 0 | M53: 5.75 | N53: 21.75 | O53: 8.25 | P53: 0.5
A54: 421.11 | B54: Хлеб ржаной (для детского питания) | E54: 25 | F54: 2 | G54: 0 | H54: 10 | I54: 50 | J54: 0.04 | K54: 0 | L54: 0 | M54: 7.25 | N54: 32.5 | O54: 10.5 | P54: 0.9
B55: Итого за обед | F55: =SUM(F49:F54) -> 36.1 | G55: 29.45 | H55: 96.3 | I55: 808 | J55: 0.36 | K55: 28.42 | L55: 9.51 | M55: 77.43 | N55: 354.14 | O55: 88.02 | P55: 7.16
B56: Итого за день | F56: 64.13 | G56: 62.05 | H56: 193.08 | I56: 1679.5 | J56: 0.663 | K56: 114.15 | L56: 120.31 | M56: 419.2 | N56: 871.8 | O56: 198.67 | P56: 10.63
A67: День: среда | E67: Сезон: 01.09 - 01.03 (2021 - 2022 г)
A68: Неделя: 1 | E68: Возраст: с 7 до 11 лет
A69: № | B69: Наименование блюда | E69: масса | F69: Пищевые вещества (г) | I69: энерге- | J69: Витамины | M69: Минеральные вещества (мг)
A70: рец. | E70: порций | F70: Б | G70: Ж | H70: У | I70: тическая | J70: В1 | K70: С | L70: А | M70: Са | N70: Р | O70: Мg | P70: Fe
I71: ценность
B72: Завтрак
A73: 445.3 | B73: Биточки мясные с томатным соусом | E73: 60/40 | F73: 9 | G73: 4 | H73: 9 | I73: 108 | J73: 0.05 | K73: 0.3 | L73: 0 | M73: 26.6 | N73: 121.66 | O73: 17.48 | P73: 0.46
A74: 211.05 | B74: Макаронные изделия отварные с маслом | E74: 150/5 | F74: 3 | G74: 6 | H74: 22 | I74: 153 | J74: 0.17 | K74: 26.11 | L74: 28.8 | M74: 43.14 | N74: 98.22 | O74: 33.03 | P74: 1.2
A75: 283 | B75: Чай с сахаром | E75: 200 | F75: 0 | G75: 0 | H75: 9.1 | I75: 35 | J75: 0 | K75: 0 | L75: 0 | M75: 0.26 | N75: 0 | O75: 0 | P75: 0.03
A76: 420.06 | B76: Хлеб пшеничный, ржаной (для детского питания) | E76: 50 | F76: 2.9 | G76: 0 | H76: 18.9 | I76: 95.6 | J76: 0.09 | K76: 0 | L76: 0 | M76: 10.2 | N76: 35.8 | O76: 14.2 | P76: 1
B77: Фрукты | E77: 200 | F77: 1 | G77: 0 | H77: 7 | I77: 34 | J77: 0.05 | K77: 34.2 | L77: 0 | M77: 31.5 | N77: 15.3 | O77: 9.9 | P77: 0.09
B78: Итого за завтрак | F78: =SUM(F73:F77) -> 15.9 | G78: 10 | H78: 66 | I78: 425.6 | J78: 0.36 | K78: 60.61 | L78: 28.8 | M78: 111.7 | N78: 270.98 | O78: 74.61 | P78: 2.78
B79: Обед
A80: 6.06 | B80: Салат Витаминный | E80: 60 | F80: 1 | G80: 6 | H80: 6 | I80: 84 | J80: 0.02 | K80: 12.78 | M80: 17.74 | N80: 17.76 | O80: 10.85 | P80: 0.53
A81: 450.13 | B81: Суп лапша домашняя | E81: 200 | F81: 13 | G81: 9 | H81: 9 | I81: 171 | J81: 0.1 | K81: 17.47 | L81: 7.62 | M81: 30.07 | N81: 155.45 | O81: 30.18 | P81: 2.43
A82: 3 | B82: Фрикадельки мясные пф | E82: 50/40 | F82: 16.5 | G82: 24.9 | H82: 9 | I82: 325 | J82: 0.1 | K82: 18.32 | L82: 51.16 | M82: 56.6 | N82: 197.58 | O82: 39 | P82: 2.25
A83: 610.03 | B83: Рис припущенный | E83: 150 | F83: 7.2 | G83: 6 | H83: 43.2 | I83: 254.4 | J83: 0.108 | K83: 0 | L83: 28.8 | M83: 13.38 | N83: 55.51 | O83: 9.82 | P83: 0.99
A84: 38 | B84: Компот из сухофруктов | E84: 200 | F84: 0 | G84: 0 | H84: 16 | I84: 69 | J84: 0.01 | K84: 5 | L84: 0 | M84: 9.08 | N84: 12.43 | O84: 4.59 | P84: 0.74
A85: 420.06 | B85: Хлеб пшеничный (для детского питания) | E85: 25 | F85: 2 | G85: 0 | H85: 12 | I85: 59 | J85: 0.04 | K85: 0 | L85: 0 | M85: 5.75 | N85: 21.75 | O85: 8.25 | P85: 0.5
A86: 421.11 | B86: Хлеб ржаной (для детского питания) | E86: 25 | F86: 2 | G86: 0 | H86: 10 | I86: 50 | J86: 0.04 | K86: 0 | L86: 0 | M86: 7.25 | N86: 32.5 | O86: 10.5 | P86: 0.9
B87: Итого за обед | F87: =SUM(F80:F86) -> 41.7 | G87: 45.9 | H87: 105.2 | I87: 1012.4 | J87: 0.418 | K87: 53.57 | L87: 87.58 | M87: 139.87 | N87: 492.98 | O87: 113.19 | P87: 8.34
B88: Итого за день | F88: 53.9 | G88: 45 | H88: 146.9 | I88: 1248.6 | J88: 0.81 | K88: 119.76 | L88: 103.54 | M88: 351.07 | N88: 823.87 | O88: 220.89 | P88: 11.03
A97: День: четверг | E97: Сезон: 01.09 - 01.03 (2021 - 2022 г)
A98: Неделя: 1 | E98: Возраст: с 7 до 11 лет
A99: № | B99: Наименование блюда | E99: масса | F99: Пищевые вещества (г) | I99: энерге- | J99: Витамины | M99: Минеральные вещества (мг)
A100: рец. | E100: порций | F100: Б | G100: Ж | H100: У | I100: тическая | J100: В1 | K100: С | L100: А | M100: Са | N100: Р | O100: Мg | P100: Fe
I101: ценность
B102: Завтрак
A103: 401.08 | B103: Масло сливочное | E103: 10 | F103: 4.5 | G103: 4.5 | H103: 0 | I103: 54 | J103: 0 | K103: 0.105 | L103: 31.5 | M103: 150 | N103: 90 | O103: 8.25 | P103: 0.105
A104: 1 | B104: Тефтели пф | E104: 60/40 | F104: 9 | G104: 4 | H104: 9 | I104: 108 | J104: 0.05 | K104: 0.3 | L104: 0 | M104: 26.6 | N104: 121.66 | O104: 17.48 | P104: 0.46
A105: 138 | B105: Пюре картофельное | E105: 150 | F105: 3 | G105: 4.9 | H105: 20 | I105: 138.3 | J105: 0.12 | K105: 10.38 | L105: 28.8 | M105: 35.6 | N105: 98.22 | O105: 33.03 | P105: 1.2
A106: 283 | B106: Чай с сахаром | E106: 200 | F106: 0 | G106: 0 | H106: 9.1 | I106: 35 | J106: 0 | K106: 0 | L106: 0 | M106: 0.26 | N106: 0 | O106: 0 | P106: 0.03
A107: 420.06 | B107: Хлеб пшеничный, ржаной | E107: 50 | F107: 2.7 | G107: 0 | H107: 18.7 | I107: 94.7 | J107: 0.07 | K107: 0 | L107: 0 | M107: 9.2 | N107: 34.8 | O107: 13.2 | P107: 0.8
B108: Фрукты | E108: 200 | F108: 1 | G108: 0 | H108: 7 | I108: 34 | J108: 0.05 | K108: 34.2 | L108: 0 | M108: 31.5 | N108: 15.3 | O108: 9.9 | P108: 0.09
B109: Итого за завтрак | F109: =SUM(F103:F108) -> 20.2 | G109: 13.4 | H109: 63.8 | I109: 464 | J109: 0.29 | K109: 44.985 | L109: 60.3 | M109: 253.16 | N109: 359.98 | O109: 81.86 | P109: 2.685
B110: Обед
A111: 56.13 | B111: Борщ с капустой и картофелем на мясном бульоне со сметаной | E111: 200/10 | F111: 14 | G111: 9 | H111: 14 | I111: 196 | J111: 0.1 | K111: 24.92 | L111: 7.63 | M111: 46.02 | N111: 173.75 | O111: 39.96 | P111: 3.1
A112: 1 | B112: Котлеты мясные с томатным соусом | E112: 60/40 | F112: 16.2 | G112: 14.5 | H112: 13.9 | I112: 252 | J112: 0.07 | K112: 0.29 | L112: 0 | M112: 34.65 | N112: 0 | O112: 28.56 | P112: 1.48
A113: 302 | B113: Каша гречневая вязкая с маслом | E113: 150/5 | F113: 11 | G113: 14 | H113: 17 | I113: 236 | J113: 0.15 | K113: 21.2 | L113: 0 | M113: 17.3 | N113: 152.04 | O113: 35 | P113: 2.27
A114: 38 | B114: Компот из сухофруктов | E114: 200 | F114: 0 | G114: 0 | H114: 16 | I114: 69 | J114: 0.01 | K114: 5 | L114: 0 | M114: 9.08 | N114: 12.43 | O114: 4.59 | P114: 0.74
A115: 420.06 | B115: Хлеб пшеничный (для детского питания) | E115: 25 | F115: 2.5 | G115: 0 | H115: 13 | I115: 59 | J115: 0.04 | K115: 0 | L115: 0 | M115: 5.75 | N115: 21.75 | O115: 8.25 | P115: 0.5
A116: 421.11 | B116: Хлеб ржаной (для детского питания) | E116: 25 | F116: 2.5 | G116: 0 | H116: 11 | I116: 50 | J116: 0.04 | K116: 0 | L116: 0 | M116: 7.25 | N116: 32.5 | O116: 10.5 | P116: 0.9
B117: Итого за обед | F117: =SUM(F111:F116) -> 46.2 | G117: 37.5 | H117: 84.9 | I117: 862 | J117: 0.41 | K117: 51.41 | L117: 7.63 | M117: 120.05 | N117: 392.47 | O117: 126.86 | P117: 8.99
B118: Итого за день | F118: 50.2 | G118: 50.5 | H118: 188.7 | I118: 1414.7 | J118: 0.6 | K118: 85.26 | L118: 77.49 | M118: 441.69 | N118: 716.28 | O118: 201.03 | P118: 9.595
A130: День: пятница | E130: Сезон: 01.09 - 01.03 (2021 - 2022 г)
A131: Неделя: 1 | E131: Возраст: с 7 до 11 лет
A132: № | B132: Наименование блюда | E132: масса | F132: Пищевые вещества (г) | I132: энерге- | J132: Витамины | M132: Минеральные вещества (мг)
A133: рец. | E133: порций | F133: Б | G133: Ж | H133: У | I133: тическая | J133: В1 | K133: С | L133: А | M133: Са | N133: Р | O133: Мg | P133: Fe
I134: ценность
B135: Завтрак
A136: 27.01 | B136: Сыр (порциями) | E136: 10 | F136: 3.94 | G136: 3.99 | H136: 6 | I136: 52.5 | J136: 0.03 | K136: 34.65 | L136: 0 | M136: 39.53 | N136: 30.15 | O136: 15.12 | P136: 0.55
A137: 181.39 | B137: Каша рисовая молочная вязкая с маслом | E137: 150/10 | F137: 13 | G137: 16 | H137: 39 | I137: 350 | J137: 0.08 | K137: 1.35 | L137: 0 | M137: 14.02 | N137: 178.97 | O137: 41.8 | P137: 1.97
A138: 300 | B138: Напиток "Валетек" | E138: 200 | F138: 0 | G138: 0 | H138: 15.8 | I138: 60 | J138: 0.3 | K138: 11.2 | L138: 170 | M138: 220 | N138: 4.2 | O138: 12.18 | P138: 0.08
A139: 420.06 | B139: Хлеб пшеничный, ржаной | E139: 45 | F139: 2.7 | G139: 0 | H139: 18.7 | I139: 94.7 | J139: 0.07 | L139: 0 | M139: 9.2 | N139: 34.8 | O139: 13.2 | P139: 0.8
A140: 476.01 | B140: Кисломолочный продукт | E140: 200 | F140: 6.4 | G140: 6.4 | H140: 9 | I140: 124 | J140: 0.05 | K140: 34.2 | L140: 0 | M140: 31.5 | N140: 15.3 | O140: 9.9 | P140: 0.09
B141: Итого за завтрак | F141: =SUM(F136:F140) -> 26.04 | G141: 26.39 | H141: 88.5 | I141: 681.2 | J141: 0.53 | K141: 81.4 | L141: 170 | M141: 314.25 | N141: 263.42 | O141: 92.2 | P141: 3.49
B142: Обед
A143: 54.47 | B143: Рассольник Ленинградский со сметаной | E143: 200/10 | F143: 16 | G143: 10 | H143: 12 | I143: 200 | J143: 0.09 | K143: 1.77 | L143: 10.15 | M143: 22.35 | N143: 175.47 | O143: 27.27 | P143: 2.83
A144: 98 | B144: Биточки мясные | E144: 60/40 | F144: 16.2 | G144: 14.5 | H144: 13.9 | I144: 252 | J144: 0.07 | K144: 0.29 | L144: 0.1 | M144: 34.65 | N144: 1.23 | O144: 28.56 | P144: 1.48
A145: 138.06 | B145: Картофельное пюре | E145: 200 | F145: 4.5 | G145: 7.2 | H145: 29.4 | I145: 203 | J145: 0.17 | K145: 15.22 | L145: 6.2 | M145: 52.21 | N145: 166.16 | O145: 41.66 | P145: 1.51
A146: 283 | B146: Чай с сахаром | E146: 200 | F146: 0 | G146: 0 | H146: 9.1 | I146: 35 | J146: 0 | K146: 0 | L146: 0 | M146: 0.26 | N146: 0 | O146: 0 | P146: 0.03
A147: 420.05 | B147: Хлеб пшеничный (для детского питания) | E147: 25 | F147: 2 | G147: 0 | H147: 12 | I147: 59 | J147: 0.04 | K147: 0 | L147: 0 | M147: 5.75 | N147: 21.75 | O147: 8.25 | P147: 0.5
A148: 421.11 | B148: Хлеб ржаной (для детского питания) | E148: 25 | F148: 2 | G148: 0 | H148: 10 | I148: 50 | J148: 0.04 | K148: 0 | L148: 0 | M148: 7.25 | N148: 32.5 | O148: 10.5 | P148: 0.9
B149: Итого за обед | F149: =SUM(F143:F148) -> 40.7 | G149: 31.7 | H149: 86.4 | I149: 799 | J149: 0.41 | K149: 17.28 | L149: 16.45 | M149: 122.47 | N149: 397.11 | O149: 116.24 | P149: 7.25
B150: Итого за день | F150: 54.7 | G150: 44 | H150: 173.7 | I150: 1320.7 | J150: 0.76 | K150: 124.81 | L150: 26.35 | M150: 271.91 | N150: 846.37 | O150: 237.56 | P150: 11.74
A161: День: понедельник | E161: Сезон: 01.09 - 01.03 (2021 - 2022 г)
A162: Неделя: 2 | E162: Возраст: с 7 до 11 лет
A163: № | B163: Наименование блюда | E163: масса | F163: Пищевые вещества (г) | I163: энерге- | J163: Витамины | M163: Минеральные вещества (мг)
A164: рец. | E164: порций | F164: Б | G164: Ж | H164: У | I164: тическая | J164: В1 | K164: С | L164: А | M164: Са | N164: Р | O164: Мg | P164: Fe
I165: ценность
B166: Завтрак
A167: 401.08 | B167: Масло сливочное | E167: 8 | F167: 0.08 | G167: 6.8 | H167: 0.15 | I167: 55.9 | J167: 0 | K167: 0.105 | L167: 31.5 | M167: 150 | N167: 90 | O167: 8.25 | P167: 0.105
A168: 211.56 | B168: Макаронные изделия с тертым сыром | E168: 160 | F168: 14.9 | G168: 16.8 | H168: 43 | I168: 388 | J168: 0.09 | K168: 0.2 | L168: 28.8 | M168: 306.91 | N168: 55.51 | O168: 26.05 | P168: 1.21
A169: 289 | B169: Какао с молоком | E169: 200 | F169: 3.6 | G169: 3.3 | H169: 13.7 | I169: 98 | J169: 0.03 | K169: 0.52 | L169: 0 | M169: 110.37 | N169: 0 | O169: 26.97 | P169: 0.88
A170: 420.02 | B170: Хлеб пшеничный, ржаной | E170: 50 | F170: 4 | G170: 0.5 | H170: 27.5 | I170: 130 | J170: 0.07 | K170: 0 | L170: 0 | M170: 9.2 | N170: 34.8 | O170: 13.2 | P170: 0.8
A171: 38 | B171: Фрукты | E171: 200 | F171: 1 | G171: 0 | H171: 7 | I171: 34 | J171: 0.05 | K171: 34.2 | L171: 0 | M171: 31.5 | N171: 15.3 | O171: 9.9 | P171: 0.09
B172: Итого за завтрак | F172: =SUM(F167:F171) -> 23.58 | G172: 27.4 | H172: 91.35 | I172: 705.9 | J172: 0.24 | K172: 35.025 | L172: 60.3 | M172: 607.98 | N172: 195.61 | O172: 84.37 | P172: 3.085
B173: Обед
A174: 56.21 | B174: Суп с мелкошинкованными овощами со сметаной | E174: 200 | F174: 2.14 | G174: 5.76 | H174: 11.48 | I174: 107.06 | J174: 0.22 | K174: 9.74 | L174: 0.11 | M174: 35.39 | N174: 190.3 | O174: 43.15 | P174: 3.26
A175: 3 | B175: Фрикадельки мясные пф | E175: 50/40 | F175: 16.5 | G175: 24.9 | H175: 9 | I175: 325 | J175: 0.1 | K175: 18.32 | L175: 51.16 | M175: 56.6 | N175: 197.58 | O175: 39 | P175: 2.25
A176: 610.03 | B176: Рис припущенный | E176: 150 | F176: 7.2 | G176: 6 | H176: 43.2 | I176: 254.4 | J176: 0.108 | K176: 0 | L176: 28.8 | M176: 13.38 | N176: 55.51 | O176: 9.82 | P176: 0.99
A177: 283 | B177: Чай с сахаром | E177: 200 | F177: 0 | G177: 0 | H177: 9.1 | I177: 35 | J177: 0 | K177: 0 | L177: 0 | M177: 0.26 | N177: 0 | O177: 0 | P177: 0.03
A178: 420.02 | B178: Хлеб пшеничный (для детского питания) | E178: 40 | F178: 2 | G178: 0 | H178: 12 | I178: 59 | J178: 0.04 | K178: 0 | L178: 0 | M178: 5.75 | N178: 21.75 | O178: 8.25 | P178: 0.5
A179: 421.11 | B179: Хлеб ржаной (для детского питания) | E179: 40 | F179: 2 | G179: 0 | H179: 10 | I179: 50 | J179: 0.04 | K179: 0 | L179: 0 | M179: 7.25 | N179: 32.5 | O179: 10.5 | P179: 0.9
B180: Итого за обед | F180: =SUM(F174:F179) -> 29.84 | G180: 36.66 | H180: 94.78 | I180: 830.46 | J180: 0.508 | K180: 28.06 | L180: 80.07 | M180: 118.63 | N180: 497.64 | O180: 110.72 | P180: 7.93
B181: Итого за день | F181: 68.93 | G181: 52.8 | H181: 191.48 | I181: 1605.21 | J181: 0.958 | K181: 67.28 | L181: 146.16 | M181: 410.43 | N181: 977.97 | O181: 304.51 | P181: 15.165
A191: День: вторник | E191: Сезон: 01.09 - 01.03 (2021 - 2022 г)
A192: Неделя: 2 | E192: Возраст: с 7 до 11 лет
A193: № | B193: Наименование блюда | E193: масса | F193: Пищевые вещества (г) | I193: энерге- | J193: Витамины | M193: Минеральные вещества (мг)
A194: рец. | E194: порций | F194: Б | G194: Ж | H194: У | I194: тическая | J194: В1 | K194: С | L194: А | M194: Са | N194: Р | O194: Мg | P194: Fe
I195: ценность
B196: Завтрак
A197: 2 | B197: Тефтели мясные пф | E197: 60/40 | F197: 13 | G197: 16 | H197: 39 | I197: 350 | J197: 0.08 | K197: 1.35 | L197: 0 | M197: 14.02 | N197: 178.97 | O197: 41.8 | P197: 1.97
A198: 175.11 | B198: Каша гречневая вязкая с маслом | E198: 180 | F198: 3 | G198: 6 | H198: 22 | I198: 153 | J198: 0.17 | K198: 26.11 | L198: 28.8 | M198: 43.14 | N198: 98.22 | O198: 33.03 | P198: 1.2
A199: 283 | B199: Чай с сахаром | E199: 200 | F199: 0 | G199: 0 | H199: 9.1 | I199: 35 | J199: 0 | K199: 0 | L199: 0 | M199: 0.26 | N199: 0 | O199: 0 | P199: 0.03
A200: 420.02 | B200: Хлеб пшеничный, ржаной (для детского питания) | E200: 50 | F200: 2.9 | G200: 0 | H200: 18.9 | I200: 95.6 | J200: 0.09 | K200: 0 | L200: 0 | M200: 10.2 | N200: 35.8 | O200: 14.2 | P200: 1
A201: 476.01 | B201: Кисломолочный продукт для детского питания | E201: 200 | F201: 1 | G201: 0 | H201: 7 | I201: 34 | J201: 0.05 | K201: 34.2 | L201: 0 | M201: 31.5 | N201: 15.3 | O201: 9.9 | P201: 0.09
B202: Итого за завтрак | F202: =SUM(F197:F201) -> 19.9 | G202: 22 | H202: 96 | I202: 667.6 | J202: 0.39 | K202: 61.66 | L202: 28.8 | M202: 99.12 | N202: 328.29 | O202: 98.93 | P202: 4.29
B203: Обед
A204: 25.23 | B204: Салат из свеклы с растительным маслом | E204: 60 | F204: 1 | G204: 6 | H204: 5 | I204: 80 | J204: 0.03 | K204: 2.64 | L204: 0 | M204: 14.31 | N204: 29.16 | O204: 20.06 | P204: 0.38
A205: 66.63 | B205: Суп-лапшпа | E205: 200 | F205: 3 | G205: 5 | H205: 15 | I205: 121 | J205: 0.07 | K205: 15.21 | L205: 7.5 | M205: 32.53 | N205: 57.52 | O205: 25.98 | P205: 1.27
A206: 1 | B206: Котлеты | E206: 60/40 | F206: 9 | G206: 11 | H206: 2 | I206: 144 | J206: 0.04 | K206: 1.62 | L206: 0 | M206: 8.79 | N206: 101.41 | O206: 15.23 | P206: 1.46
A207: 170 | B207: Пюре гороховое | E207: 150/5 | F207: 8.1 | G207: 7.2 | H207: 48.2 | I207: 295 | J207: 0.09 | K207: 0 | L207: 0 | M207: 14.03 | N207: 0 | O207: 11.09 | P207: 1.12
A208: 283 | B208: Чай с сахаром | E208: 200 | F208: 0 | G208: 0 | H208: 9.1 | I208: 35 | J208: 0 | K208: 0 | L208: 0 | M208: 0.26 | N208: 0 | O208: 0 | P208: 0.03
A209: 420.06 | B209: Хлеб пшеничный (для детского питания) | E209: 25 | F209: 2 | G209: 0 | H209: 12 | I209: 59 | J209: 0.04 | K209: 0 | L209: 0 | M209: 5.75 | N209: 21.75 | O209: 8.25 | P209: 0.5
A210: 421.11 | B210: Хлеб ржаной (для детского питания) | E210: 25 | F210: 2 | G210: 0 | H210: 10 | I210: 50 | J210: 0.04 | K210: 0 | L210: 0 | M210: 7.25 | N210: 32.5 | O210: 10.5 | P210: 0.9
B211: Итого за обед | F211: =SUM(F204:F210) -> 25.1 | G211: 29.2 | H211: 101.3 | I211: 784 | J211: 0.31 | K211: 19.47 | L211: 7.5 | M211: 82.92 | N211: 242.34 | O211: 91.11 | P211: 5.66
B212: Итого за день | F212: 41.8 | G212: 42 | H212: 179.5 | I212: 1281.6 | J212: 0.675 | K212: 105.48 | L212: 52.26 | M212: 317.57 | N212: 721.83 | O212: 221.52 | P212: 9.96
A222: День: среда | E222: Сезон: 01.09 - 01.03 (2021 - 2022 г)
A223: Неделя: 2 | E223: Возраст: с 7 до 11 лет
A224: № | B224: Наименование блюда | E224: масса | F224: Пищевые вещества (г) | I224: энерге- | J224: Витамины | M224: Минеральные вещества (мг)
A225: рец. | E225: порций | F225: Б | G225: Ж | H225: У | I225: тическая | J225: В1 | K225: С | L225: А | M225: Са | N225: Р | O225: Мg | P225: Fe
I226: ценность
B227: Завтрак
A228: 401.08 | B228: Масло сливочное | E228: 10 | F228: 0.08 | G228: 6.8 | H228: 0.15 | I228: 55.9 | J228: 0 | K228: 0.105 | L228: 31.5 | M228: 150 | N228: 90 | O228: 8.25 | P228: 0.105
A229: 1 | B229: Котлеты из говядины | E229: 60/40 | F229: 16.2 | G229: 14.5 | H229: 13.9 | I229: 252 | J229: 0.07 | K229: 0.29 | L229: 40.5 | M229: 34.65 | N229: 162.2 | O229: 28.56 | P229: 1.48
A230: 78.03 | B230: Каша ячневая рассыпчатая | E230: 150 | F230: 14.6 | G230: 24.1 | H230: 2.6 | I230: 285 | J230: 0.07 | K230: 0.22 | L230: 40 | M230: 100.23 | N230: 3 | O230: 16.81 | P230: 2.5
A231: 283 | B231: Чай с сахаром | E231: 200 | F231: 0 | G231: 0 | H231: 9.1 | I231: 35 | J231: 0 | K231: 0 | L231: 0 | M231: 0.26 | N231: 0 | O231: 0 | P231: 0.03
A232: 1.1 | B232: Хлеб пшеничный, ржаной (для детского питания) | E232: 50 | F232: 2.9 | G232: 0 | H232: 18.9 | I232: 95.6 | J232: 0.09 | K232: 0 | L232: 0 | M232: 10.2 | N232: 35.8 | O232: 14.2 | P232: 1
B233: Фрукты | E233: 200 | F233: 1 | G233: 0 | H233: 7 | I233: 34 | J233: 0.05 | K233: 34.2 | L233: 0 | M233: 31.5 | N233: 15.3 | O233: 9.9 | P233: 0.09
B234: Итого за завтрак | F234: =SUM(F228:F233) -> 34.78 | G234: 45.4 | H234: 51.65 | I234: 757.5 | J234: 0.28 | K234: 34.815 | L234: 112 | M234: 326.84 | N234: 306.3 | O234: 77.72 | P234: 5.205
B235: Обед
A236: 76.02 | B236: Салат из моркови | E236: 80 | F236: 1 | G236: 6 | H236: 5 | I236: 80 | J236: 0.03 | K236: 2.64 | L236: 0 | M236: 14.31 | N236: 29.16 | O236: 20.06 | P236: 0.38
A237: 53.39 | B237: Щи из свежей капусты со сметаной | E237: 250/5 | F237: 3 | G237: 5 | H237: 15 | I237: 121 | J237: 0.07 | K237: 15.21 | L237: 7.5 | M237: 32.53 | N237: 57.52 | O237: 25.98 | P237: 1.27
A238: 2 | B238: Тефтели мясные пф | E238: 60/40 | F238: 13 | G238: 16 | H238: 39 | I238: 350 | J238: 0.08 | K238: 1.35 | L238: 0 | M238: 14.02 | N238: 178.97 | O238: 41.8 | P238: 1.97
A239: 211.05 | B239: Макаронные изделия отварные с маслом | E239: 150/5 | F239: 3 | G239: 6 | H239: 22 | I239: 153 | J239: 0.17 | K239: 26.11 | L239: 28.8 | M239: 43.14 | N239: 98.22 | O239: 33.03 | P239: 1.2
A240: 294 | B240: Компот из сухофруктов | E240: 200 | F240: 0 | G240: 0 | H240: 16 | I240: 67 | J240: 0.01 | K240: 20.2 | L240: 0 | M240: 6.76 | N240: 4.4 | O240: 3.6 | P240: 0.92
A241: 420.02 | B241: Хлеб пшеничный (для детского питания) | E241: 25 | F241: 2 | G241: 0 | H241: 12 | I241: 59 | J241: 0.04 | K241: 0 | L241: 0 | M241: 5.75 | N241: 21.75 | O241: 8.25 | P241: 0.5
A242: 421.11 | B242: Хлеб ржаной (для детского питания) | E242: 25 | F242: 2 | G242: 0 | H242: 10 | I242: 50 | J242: 0.04 | K242: 0 | L242: 0 | M242: 7.25 | N242: 32.5 | O242: 10.5 | P242: 0.9
B243: Итого за обед | F243: =SUM(F236:F242) -> 24 | G243: 33 | H243: 119 | I243: 880 | J243: 0.44 | K243: 65.51 | L243: 36.3 | M243: 123.76 | N243: 422.52 | O243: 143.22 | P243: 7.14
B244: Итого за день | F244: 38.8 | G244: 43 | H244: 214.5 | I244: 1429.6 | J244: 0.645 | K244: 85.5 | L244: 91.31 | M244: 292.27 | N244: 637.07 | O244: 190.21 | P244: 8.99
A257: День: четверг | E257: Сезон: 01.09 - 01.03 (2021 - 2022 г)
A258: Неделя: 2 | E258: Возраст: с 7 до 11 лет
A259: № | B259: Наименование блюда | E259: масса | F259: Пищевые вещества (г) | I259: энерге- | J259: Витамины | M259: Минеральные вещества (мг)
A260: рец. | E260: порций | F260: Б | G260: Ж | H260: У | I260: тическая | J260: В1 | K260: С | L260: А | M260: Са | N260: Р | O260: Мg | P260: Fe
I261: ценность
B262: Завтрак
A263: 27.01 | B263: Сыр (порциями) | E263: 10 | F263: 4.5 | G263: 4.5 | H263: 0 | I263: 54 | J263: 0 | K263: 0.105 | L263: 31.5 | M263: 150 | N263: 90 | O263: 8.25 | P263: 0.105
A264: 3 | B264: Фрикадельки мясные с томатным соусом | E264: 50/60 | F264: 11.3 | G264: 9.3 | H264: 8.2 | I264: 162 | J264: 0.04 | K264: 0.02 | L264: 29.25 | M264: 23.84 | N264: 240.53 | O264: 20.99 | P264: 0.92
A265: 138.06 | B265: Картофельное пюре | E265: 160 | F265: 4.5 | G265: 7.2 | H265: 29.4 | I265: 203 | J265: 0.17 | K265: 15.22 | L265: 6.2 | M265: 52.21 | N265: 166.16 | O265: 41.66 | P265: 1.51
A266: 285 | B266: Чай с лимоном и сахаром | E266: 200 | F266: 0.1 | G266: 0 | H266: 9.3 | I266: 37 | J266: 0 | K266: 1.12 | L266: 0 | M266: 2.73 | N266: 0 | O266: 0.73 | P266: 0.06
A267: 420.02 | B267: Хлеб пшеничный, ржаной | E267: 40 | F267: 2.7 | G267: 0 | H267: 18.7 | I267: 94.7 | J267: 0.07 | K267: 0 | L267: 0 | M267: 9.2 | N267: 34.8 | O267: 13.2 | P267: 0.8
B268: Итого за завтрак | F268: =SUM(F263:F267) -> 23.1 | G268: 21 | H268: 65.6 | I268: 550.7 | J268: 0.28 | K268: 16.465 | L268: 66.95 | M268: 237.98 | N268: 531.49 | O268: 84.83 | P268: 3.395
B269: Обед
A270: 2.1 | B270: Салат из белокочанной капусты с морковью | E270: 60 | F270: 1 | G270: 6 | H270: 6 | I270: 82 | J270: 0.02 | K270: 22.98 | M270: 25.9 | N270: 19.04 | O270: 10.34 | P270: 0.35
A271: 67.32 | B271: Свекольник со сметаной | E271: 200/5 | F271: 2 | G271: 5.1 | H271: 13.7 | I271: 108 | J271: 0.05 | K271: 4.84 | L271: 7.62 | M271: 28.27 | N271: 171.85 | O271: 24.9 | P271: 1.21
A272: 423.18 | B272: Тефтели рыбные с томатным соусом | E272: 60/40 | F272: 12.7 | G272: 8.5 | H272: 12.2 | I272: 177 | J272: 0.11 | K272: 0.3 | L272: 51.16 | M272: 37.03 | N272: 197.58 | O272: 23.72 | P272: 0.78
A273: 175.11 | B273: Каша гречневая вязкая с маслом | E273: 150/10 | F273: 3 | G273: 6 | H273: 22 | I273: 153 | J273: 0.17 | K273: 26.11 | L273: 28.8 | M273: 43.14 | N273: 98.22 | O273: 33.03 | P273: 1.2
A274: 305.11 | B274: Витаминизированный кисель | E274: 200 | F274: 0 | G274: 0 | H274: 16 | I274: 67 | J274: 0.01 | K274: 20.2 | L274: 0 | M274: 6.76 | N274: 4.4 | O274: 3.6 | P274: 0.92
A275: 420.05 | B275: Хлеб пшеничный (для детского питания) | E275: 25 | F275: 2.5 | G275: 0 | H275: 13 | I275: 59 | J275: 0.04 | K275: 0 | L275: 0 | M275: 5.75 | N275: 21.75 | O275: 8.25 | P275: 0.5
A276: 421.11 | B276: Хлеб ржаной (для детского питания) | E276: 25 | F276: 2.5 | G276: 0 | H276: 11 | I276: 50 | J276: 0.04 | K276: 0 | L276: 0 | M276: 7.25 | N276: 32.5 | O276: 10.5 | P276: 0.9
B277: Итого за обед | F277: =SUM(F270:F276) -> 23.7 | G277: 25.6 | H277: 93.9 | I277: 696 | J277: 0.44 | K277: 74.43 | L277: 87.58 | M277: 154.1 | N277: 545.34 | O277: 114.34 | P277: 5.86
B278: Итого за день | F278: 59.2 | G278: 58.5 | H278: 126.7 | I278: 1293.7 | J278: 0.68 | K278: 95.45 | L278: 129.53 | M278: 509.89 | N278: 906.35 | O278: 195.84 | P278: 11.055
A288: День: пятница | E288: Сезон: 01.09 - 01.03 (2021 - 2022 г)
A289: Неделя: 2 | E289: Возраст: с 7 до 11 лет
A290: № | B290: Наименование блюда | E290: масса | F290: Пищевые вещества (г) | I290: энерге- | J290: Витамины | M290: Минеральные вещества (мг)
... 21 more rows

Sheet с 11 до 18 лет
A2: День: понедельник | E2: Сезон: 01.09 - 01.03 (2021 - 2022 г)
A3: Неделя: 1 | E3: Возраст: с 11 до 18 лет
A4: № | B4: Наименование блюда | E4: масса | F4: Пищевые вещества (г) | I4: энерге- | J4: Витамины | M4: Минеральные вещества (мг)
A5: рец. | E5: порций | F5: Б | G5: Ж | H5: У | I5: тическая | J5: В1 | K5: С | L5: А | M5: Са | N5: Р | O5: Мg | P5: Fe
I6: ценность
B7: Завтрак
A8: 649.09 | B8: Морковь отварная с растительным маслом | E8: 50 | F8: 0.52 | G8: 1.93 | H8: 2.35 | I8: 27.96 | J8: 0.08 | K8: 0.82 | L8: 27.55 | M8: 216.67 | N8: 295.62 | O8: 39.05 | P8: 0.72
A9: 1 | B9: Котлеты из говядины | E9: 80/40 | F9: 16.2 | G9: 14.5 | H9: 13.9 | I9: 252 | J9: 0.07 | K9: 0.29 | L9: 40.5 | M9: 34.65 | N9: 162.2 | O9: 28.56 | P9: 1.48
A10: 78.03 | B10: Каша ячневая рассыпчатая | E10: 180 | F10: 14.6 | G10: 24.1 | H10: 2.6 | I10: 285 | J10: 0.07 | K10: 0.22 | L10: 40 | M10: 100.23 | N10: 3 | O10: 16.81 | P10: 2.5
A11: 285 | B11: Чай с лимоном и сахаром | E11: 200 | F11: 0.1 | G11: 0 | H11: 9.3 | I11: 37 | J11: 0 | K11: 1.12 | L11: 0 | M11: 2.73 | N11: 0 | O11: 0.73 | P11: 0.06
A12: 420.06 | B12: Хлеб пшеничный, ржаной (для детского питания) | E12: 50 | F12: 2.9 | G12: 0 | H12: 18.9 | I12: 95.6 | J12: 0.09 | K12: 0 | L12: 0 | M12: 10.2 | N12: 35.8 | O12: 14.2 | P12: 1
A13: 155.02 | B13: Кисломолочный продукт | E13: 200 | F13: 3 | G13: 3 | H13: 5 | I13: 60 | J13: 0 | K13: 0 | L13: 10.9 | M13: 0 | N13: 0 | O13: 0 | P13: 0
B14: Итого за завтрак | F14: =SUM(F8:F13) -> 37.32 | G14: 43.53 | H14: 52.05 | I14: 757.56 | J14: 0.31 | K14: 2.45 | L14: 118.95 | M14: 364.48 | N14: 496.62 | O14: 99.35 | P14: 5.76
B15: Обед
A16: 25.09 | B16: Салат из свеклы с яблоками | E16: 80 | F16: 1 | G16: 6 | H16: 4 | I16: 76 | J16: 0.03 | K16: 5.64 | L16: 0 | M16: 13.2 | N16: 24.49 | O16: 11.08 | P16: 0.47
A17: 129.08 | B17: Суп картофельный с горохом и гренками | E17: 250/15 | F17: 12 | G17: 7 | H17: 13 | I17: 162 | J17: 0.08 | K17: 2.99 | L17: 25.76 | M17: 20.55 | N17: 134.18 | O17: 23.56 | P17: 2.15
A18: 2 | B18: Тефтели мясные пф | E18: 80/40 | F18: 13 | G18: 16 | H18: 39 | I18: 350 | J18: 0.08 | K18: 1.35 | L18: 0 | M18: 14.02 | N18: 178.97 | O18: 41.8 | P18: 1.97
A19: 118.08 | B19: Рагу овощное | E19: 180 | F19: 9 | G19: 11 | H19: 2 | I19: 144 | J19: 0.04 | K19: 1.62 | L19: 0 | M19: 8.79 | N19: 101.41 | O19: 15.23 | P19: 1.46
A20: 305.11 | B20: Витаминизированный кисель | E20: 200 | F20: 0 | G20: 0 | H20: 16 | I20: 67 | J20: 0.01 | K20: 20.2 | L20: 0 | M20: 6.76 | N20: 4.4 | O20: 3.6 | P20: 0.92
A21: 420.09 | B21: Хлеб пшеничный (для детского питания) | E21: 25 | F21: 2 | G21: 0 | H21: 12 | I21: 59 | J21: 0.04 | K21: 0 | L21: 0 | M21: 5.75 | N21: 21.75 | O21: 8.25 | P21: 0.5
A22: 421 | B22: Хлеб ржаной (для детского питания) | E22: 25 | F22: 2 | G22: 0 | H22: 10 | I22: 50 | J22: 0.04 | K22: 0 | L22: 0 | M22: 7.25 | N22: 32.5 | O22: 10.5 | P22: 0.9
B23: Итого за обед | F23: =SUM(F16:F22) -> 39 | G23: 40 | H23: 96 | I23: 908 | J23: 0.32 | K23: 31.8 | L23: 25.76 | M23: 76.32 | N23: 497.7 | O23: 114.02 | P23: 8.37
B24: Итого за день | F24: 69.9 | G24: 48 | H24: 175.9 | I24: 1442.6 | J24: 0.71 | K24: 31.27 | L24: 124.2 | M24: 312.17 | N24: 818.22 | O24: 183.74 | P24: 10.1
A35: День: вторник | E35: Сезон: 01.09 - 01.03 (2021 - 2022 г)
A36: Неделя: 1 | E36: Возраст: с 11 до 18 лет
A38: № | B38: Наименование блюда | E38: масса | F38: Пищевые вещества (г) | I38: энерге- | J38: Витамины | M38: Минеральные вещества (мг)
A39: рец. | E39: порций | F39: Б | G39: Ж | H39: У | I39: тическая | J39: В1 | K39: С | L39: А | M39: Са | N39: Р | O39: Мg | P39: Fe
I40: ценность
B41: Завтрак
A42: 3 | B42: Фрикадельки мясные пф | E42: 70/40 | F42: 16.5 | G42: 24.9 | H42: 9 | I42: 325 | J42: 0.1 | K42: 18.32 | L42: 51.16 | M42: 56.6 | N42: 197.58 | O42: 39 | P42: 2.25
A43: 610.03 | B43: Рис припущенный | E43: 180 | F43: 7.2 | G43: 6 | H43: 43.2 | I43: 254.4 | J43: 0.108 | K43: 0 | L43: 28.8 | M43: 13.38 | N43: 55.51 | O43: 9.82 | P43: 0.99
A44: 282.11 | B44: Чай витаминизированный | E44: 200 | F44: 1 | G44: 2 | H44: 12 | I44: 70 | J44: 0.02 | K44: 0.65 | L44: 10 | M44: 60.3 | N44: 45 | O44: 7 | P44: 0.08
A45: 420.06 | B45: Хлеб пшеничный, ржаной | E45: 50 | F45: 2.7 | G45: 0 | H45: 18.7 | I45: 94.7 | J45: 0.07 | K45: 0 | L45: 0 | M45: 9.2 | N45: 34.8 | O45: 13.2 | P45: 0.8
B46: Фрукты | E46: 200 | F46: 1 | G46: 0 | H46: 7 | I46: 34 | J46: 0.05 | K46: 34.2 | L46: 0 | M46: 31.5 | N46: 15.3 | O46: 9.9 | P46: 0.09
B47: Итого за завтрак | F47: =SUM(F42:F46) -> 28.4 | G47: 32.9 | H47: 89.9 | I47: 778.1 | J47: 0.348 | K47: 53.17 | L47: 89.96 | M47: 170.98 | N47: 348.19 | O47: 78.92 | P47: 4.21
B48: Обед
A49: 53.42 | B49: Щи из свежей капусты | E49: 250/10 | F49: 15 | G49: 11.25 | H49: 15 | I49: 225 | J49: 0.15 | K49: 26.8 | L49: 9.51 | M49: 41.35 | N49: 198.48 | O49: 42.95 | P49: 3.15
A50: 1 | B50: Котлеты | E50: 80/40 | F50: 9 | G50: 11 | H50: 2 | I50: 144 | J50: 0.04 | K50: 1.62 | L50: 0 | M50: 8.79 | N50: 101.41 | O50: 15.23 | P50: 1.46
A51: 211.05 | B51: Макаронные изделия отварные с маслом | E51: 180 | F51: 8.1 | G51: 7.2 | H51: 48.2 | I51: 295 | J51: 0.09 | K51: 0 | L51: 0 | M51: 14.03 | N51: 0 | O51: 11.09 | P51: 1.12
A52: 283 | B52: Чай с сахаром | E52: 200 | F52: 0 | G52: 0 | H52: 9.1 | I52: 35 | J52: 0 | K52: 0 | L52: 0 | M52: 0.26 | N52: 0 | O52: 0 | P52: 0.03
A53: 420.02 | B53: Хлеб пшеничный (для детского питания) | E53: 25 | F53: 2 | G53: 0 | H53: 12 | I53: 59 | J53: 0.04 | K53: 0 | L53: 0 | M53: 5.75 | N53: 21.75 | O53: 8.25 | P53: 0.5
A54: 421.11 | B54: Хлеб ржаной (для детского питания) | E54: 25 | F54: 2 | G54: 0 | H54: 10 | I54: 50 | J54: 0.04 | K54: 0 | L54: 0 | M54: 7.25 | N54: 32.5 | O54: 10.5 | P54: 0.9
B55: Итого за обед | F55: =SUM(F49:F54) -> 36.1 | G55: 29.45 | H55: 96.3 | I55: 808 | J55: 0.36 | K55: 28.42 | L55: 9.51 | M55: 77.43 | N55: 354.14 | O55: 88.02 | P55: 7.16
B56: Итого за день | F56: 64.13 | G56: 62.05 | H56: 193.08 | I56: 1679.5 | J56: 0.663 | K56: 114.15 | L56: 120.31 | M56: 419.2 | N56: 871.8 | O56: 198.67 | P56: 10.63
A67: День: среда | E67: Сезон: 01.09 - 01.03 (2021 - 2022 г)
A68: Неделя: 1 | E68: Возраст: с 11 до 18 лет
A69: № | B69: Наименование блюда | E69: масса | F69: Пищевые вещества (г) | I69: энерге- | J69: Витамины | M69: Минеральные вещества (мг)
A70: рец. | E70: порций | F70: Б | G70: Ж | H70: У | I70: тическая | J70: В1 | K70: С | L70: А | M70: Са | N70: Р | O70: Мg | P70: Fe
I71: ценность
B72: Завтрак
A73: 445.3 | B73: Биточки мясные с томатным соусом | E73: 80/40 | F73: 9 | G73: 4 | H73: 9 | I73: 108 | J73: 0.05 | K73: 0.3 | L73: 0 | M73: 26.6 | N73: 121.66 | O73: 17.48 | P73: 0.46
A74: 211.05 | B74: Макаронные изделия отварные с маслом | E74: 180 | F74: 3 | G74: 6 | H74: 22 | I74: 153 | J74: 0.17 | K74: 26.11 | L74: 28.8 | M74: 43.14 | N74: 98.22 | O74: 33.03 | P74: 1.2
A75: 283 | B75: Чай с сахаром | E75: 200 | F75: 0 | G75: 0 | H75: 9.1 | I75: 35 | J75: 0 | K75: 0 | L75: 0 | M75: 0.26 | N75: 0 | O75: 0 | P75: 0.03
A76: 420.06 | B76: Хлеб пшеничный, ржаной (для детского питания) | E76: 50 | F76: 2.9 | G76: 0 | H76: 18.9 | I76: 95.6 | J76: 0.09 | K76: 0 | L76: 0 | M76: 10.2 | N76: 35.8 | O76: 14.2 | P76: 1
B77: Фрукты | E77: 200 | F77: 1 | G77: 0 | H77: 7 | I77: 34 | J77: 0.05 | K77: 34.2 | L77: 0 | M77: 31.5 | N77: 15.3 | O77: 9.9 | P77: 0.09
B78: Итого за завтрак | F78: =SUM(F73:F77) -> 15.9 | G78: 10 | H78: 66 | I78: 425.6 | J78: 0.36 | K78: 60.61 | L78: 28.8 | M78: 111.7 | N78: 270.98 | O78: 74.61 | P78: 2.78
B79: Обед
A80: 6.06 | B80: Салат Витаминный | E80: 80 | F80: 1 | G80: 6 | H80: 6 | I80: 84 | J80: 0.02 | K80: 12.78 | M80: 17.74 | N80: 17.76 | O80: 10.85 | P80: 0.53
A81: 450.13 | B81: Суп лапша домашняя | E81: 250 | F81: 13 | G81: 9 | H81: 9 | I81: 171 | J81: 0.1 | K81: 17.47 | L81: 7.62 | M81: 30.07 | N81: 155.45 | O81: 30.18 | P81: 2.43
A82: 3 | B82: Фрикадельки мясные пф | E82: 70/40 | F82: 16.5 | G82: 24.9 | H82: 9 | I82: 325 | J82: 0.1 | K82: 18.32 | L82: 51.16 | M82: 56.6 | N82: 197.58 | O82: 39 | P82: 2.25
A83: 610.03 | B83: Рис припущенный | E83: 180 | F83: 7.2 | G83: 6 | H83: 43.2 | I83: 254.4 | J83: 0.108 | K83: 0 | L83: 28.8 | M83: 13.38 | N83: 55.51 | O83: 9.82 | P83: 0.99
A84: 38 | B84: Компот из сухофруктов | E84: 200 | F84: 0 | G84: 0 | H84: 16 | I84: 69 | J84: 0.01 | K84: 5 | L84: 0 | M84: 9.08 | N84: 12.43 | O84: 4.59 | P84: 0.74
A85: 420.06 | B85: Хлеб пшеничный (для детского питания) | E85: 25 | F85: 2 | G85: 0 | H85: 12 | I85: 59 | J85: 0.04 | K85: 0 | L85: 0 | M85: 5.75 | N85: 21.75 | O85: 8.25 | P85: 0.5
A86: 421.11 | B86: Хлеб ржаной (для детского питания) | E86: 25 | F86: 2 | G86: 0 | H86: 10 | I86: 50 | J86: 0.04 | K86: 0 | L86: 0 | M86: 7.25 | N86: 32.5 | O86: 10.5 | P86: 0.9
B87: Итого за обед | F87: =SUM(F80:F86) -> 41.7 | G87: 45.9 | H87: 105.2 | I87: 1012.4 | J87: 0.418 | K87: 53.57 | L87: 87.58 | M87: 139.87 | N87: 492.98 | O87: 113.19 | P87: 8.34
B88: Итого за день | F88: 53.9 | G88: 45 | H88: 146.9 | I88: 1248.6 | J88: 0.81 | K88: 119.76 | L88: 103.54 | M88: 351.07 | N88: 823.87 | O88: 220.89 | P88: 11.03
A97: День: четверг | E97: Сезон: 01.09 - 01.03 (2021 - 2022 г)
A98: Неделя: 1 | E98: Возраст: с 11 до 18 лет
A99: № | B99: Наименование блюда | E99: масса | F99: Пищевые вещества (г) | I99: энерге- | J99: Витамины | M99: Минеральные вещества (мг)
A100: рец. | E100: порций | F100: Б | G100: Ж | H100: У | I100: тическая | J100: В1 | K100: С | L100: А | M100: Са | N100: Р | O100: Мg | P100: Fe
I101: ценность
B102: Завтрак
A103: 401.08 | B103: Масло сливочное | E103: 10 | F103: 4.5 | G103: 4.5 | H103: 0 | I103: 54 | J103: 0 | K103: 0.105 | L103: 31.5 | M103: 150 | N103: 90 | O103: 8.25 | P103: 0.105
A104: 1 | B104: Тефтели пф | E104: 80/40 | F104: 9 | G104: 4 | H104: 9 | I104: 108 | J104: 0.05 | K104: 0.3 | L104: 0 | M104: 26.6 | N104: 121.66 | O104: 17.48 | P104: 0.46
A105: 138 | B105: Пюре картофельное | E105: 150 | F105: 3 | G105: 4.9 | H105: 20 | I105: 138.3 | J105: 0.12 | K105: 10.38 | L105: 28.8 | M105: 35.6 | N105: 98.22 | O105: 33.03 | P105: 1.2
A106: 283 | B106: Чай с сахаром | E106: 200 | F106: 0 | G106: 0 | H106: 9.1 | I106: 35 | J106: 0 | K106: 0 | L106: 0 | M106: 0.26 | N106: 0 | O106: 0 | P106: 0.03
A107: 420.06 | B107: Хлеб пшеничный, ржаной | E107: 50 | F107: 2.7 | G107: 0 | H107: 18.7 | I107: 94.7 | J107: 0.07 | K107: 0 | L107: 0 | M107: 9.2 | N107: 34.8 | O107: 13.2 | P107: 0.8
B108: Фрукты | E108: 200 | F108: 1 | G108: 0 | H108: 7 | I108: 34 | J108: 0.05 | K108: 34.2 | L108: 0 | M108: 31.5 | N108: 15.3 | O108: 9.9 | P108: 0.09
B109: Итого за завтрак | F109: =SUM(F103:F108) -> 20.2 | G109: 13.4 | H109: 63.8 | I109: 464 | J109: 0.29 | K109: 44.985 | L109: 60.3 | M109: 253.16 | N109: 359.98 | O109: 81.86 | P109: 2.685
B110: Обед
A111: 56.13 | B111: Борщ с капустой и картофелем на мясном бульоне со сметаной | E111: 250/10 | F111: 14 | G111: 9 | H111: 14 | I111: 196 | J111: 0.1 | K111: 24.92 | L111: 7.63 | M111: 46.02 | N111: 173.75 | O111: 39.96 | P111: 3.1
A112: 1 | B112: Котлеты мясные с томатным соусом | E112: 80/40 | F112: 16.2 | G112: 14.5 | H112: 13.9 | I112: 252 | J112: 0.07 | K112: 0.29 | L112: 0 | M112: 34.65 | N112: 0 | O112: 28.56 | P112: 1.48
A113: 302 | B113: Каша гречневая вязкая с маслом | E113: 180/5 | F113: 11 | G113: 14 | H113: 17 | I113: 236 | J113: 0.15 | K113: 21.2 | L113: 0 | M113: 17.3 | N113: 152.04 | O113: 35 | P113: 2.27
A114: 38 | B114: Компот из сухофруктов | E114: 200 | F114: 0 | G114: 0 | H114: 16 | I114: 69 | J114: 0.01 | K114: 5 | L114: 0 | M114: 9.08 | N114: 12.43 | O114: 4.59 | P114: 0.74
A115: 420.06 | B115: Хлеб пшеничный (для детского питания) | E115: 25 | F115: 2.5 | G115: 0 | H115: 13 | I115: 59 | J115: 0.04 | K115: 0 | L115: 0 | M115: 5.75 | N115: 21.75 | O115: 8.25 | P115: 0.5
A116: 421.11 | B116: Хлеб ржаной (для детского питания) | E116: 25 | F116: 2.5 | G116: 0 | H116: 11 | I116: 50 | J116: 0.04 | K116: 0 | L116: 0 | M116: 7.25 | N116: 32.5 | O116: 10.5 | P116: 0.9
B117: Итого за обед | F117: =SUM(F111:F116) -> 46.2 | G117: 37.5 | H117: 84.9 | I117: 862 | J117: 0.41 | K117: 51.41 | L117: 7.63 | M117: 120.05 | N117: 392.47 | O117: 126.86 | P117: 8.99
B118: Итого за день | F118: 50.2 | G118: 50.5 | H118: 188.7 | I118: 1414.7 | J118: 0.6 | K118: 85.26 | L118: 77.49 | M118: 441.69 | N118: 716.28 | O118: 201.03 | P118: 9.595
A130: День: пятница | E130: Сезон: 01.09 - 01.03 (2021 - 2022 г)
A131: Неделя: 1 | E131: Возраст: с 11 до 18 лет
A132: № | B132: Наименование блюда | E132: масса | F132: Пищевые вещества (г) | I132: энерге- | J132: Витамины | M132: Минеральные вещества (мг)
A133: рец. | E133: порций | F133: Б | G133: Ж | H133: У | I133: тическая | J133: В1 | K133: С | L133: А | M133: Са | N133: Р | O133: Мg | P133: Fe
I134: ценность
B135: Завтрак
A136: 27.01 | B136: Сыр (порциями) | E136: 15 | F136: 3.94 | G136: 3.99 | H136: 6 | I136: 52.5 | J136: 0.03 | K136: 34.65 | L136: 0 | M136: 39.53 | N136: 30.15 | O136: 15.12 | P136: 0.55
A137: 181.39 | B137: Каша рисовая молочная вязкая с маслом | E137: 200 | F137: 13 | G137: 16 | H137: 39 | I137: 350 | J137: 0.08 | K137: 1.35 | L137: 0 | M137: 14.02 | N137: 178.97 | O137: 41.8 | P137: 1.97
A138: 300 | B138: Напиток "Валетек" | E138: 200 | F138: 0 | G138: 0 | H138: 15.8 | I138: 60 | J138: 0.3 | K138: 11.2 | L138: 170 | M138: 220 | N138: 4.2 | O138: 12.18 | P138: 0.08
A139: 420.06 | B139: Хлеб пшеничный, ржаной | E139: 50 | F139: 2.7 | G139: 0 | H139: 18.7 | I139: 94.7 | J139: 0.07 | L139: 0 | M139: 9.2 | N139: 34.8 | O139: 13.2 | P139: 0.8
A140: 476.01 | B140: Кисломолочный продукт | E140: 200 | F140: 6.4 | G140: 6.4 | H140: 9 | I140: 124 | J140: 0.05 | K140: 34.2 | L140: 0 | M140: 31.5 | N140: 15.3 | O140: 9.9 | P140: 0.09
B141: Итого за завтрак | F141: =SUM(F136:F140) -> 26.04 | G141: 26.39 | H141: 88.5 | I141: 681.2 | J141: 0.53 | K141: 81.4 | L141: 170 | M141: 314.25 | N141: 263.42 | O141: 92.2 | P141: 3.49
B142: Обед
A143: 54.47 | B143: Рассольник Ленинградский со сметаной | E143: 250/10 | F143: 16 | G143: 10 | H143: 12 | I143: 200 | J143: 0.09 | K143: 1.77 | L143: 10.15 | M143: 22.35 | N143: 175.47 | O143: 27.27 | P143: 2.83
A144: 98 | B144: Биточки мясные | E144: 80/40 | F144: 16.2 | G144: 14.5 | H144: 13.9 | I144: 252 | J144: 0.07 | K144: 0.29 | L144: 0.1 | M144: 34.65 | N144: 1.23 | O144: 28.56 | P144: 1.48
A145: 138.06 | B145: Картофельное пюре | E145: 200 | F145: 4.5 | G145: 7.2 | H145: 29.4 | I145: 203 | J145: 0.17 | K145: 15.22 | L145: 6.2 | M145: 52.21 | N145: 166.16 | O145: 41.66 | P145: 1.51
A146: 283 | B146: Чай с сахаром | E146: 200 | F146: 0 | G146: 0 | H146: 9.1 | I146: 35 | J146: 0 | K146: 0 | L146: 0 | M146: 0.26 | N146: 0 | O146: 0 | P146: 0.03
A147: 420.05 | B147: Хлеб пшеничный (для детского питания) | E147: 25 | F147: 2 | G147: 0 | H147: 12 | I147: 59 | J147: 0.04 | K147: 0 | L147: 0 | M147: 5.75 | N147: 21.75 | O147: 8.25 | P147: 0.5
A148: 421.11 | B148: Хлеб ржаной (для детского питания) | E148: 25 | F148: 2 | G148: 0 | H148: 10 | I148: 50 | J148: 0.04 | K148: 0 | L148: 0 | M148: 7.25 | N148: 32.5 | O148: 10.5 | P148: 0.9
B149: Итого за обед | F149: =SUM(F143:F148) -> 40.7 | G149: 31.7 | H149: 86.4 | I149: 799 | J149: 0.41 | K149: 17.28 | L149: 16.45 | M149: 122.47 | N149: 397.11 | O149: 116.24 | P149: 7.25
B150: Итого за день | F150: 54.7 | G150: 44 | H150: 173.7 | I150: 1320.7 | J150: 0.76 | K150: 124.81 | L150: 26.35 | M150: 271.91 | N150: 846.37 | O150: 237.56 | P150: 11.74
A161: День: понедельник | E161: Сезон: 01.09 - 01.03 (2021 - 2022 г)
A162: Неделя: 2 | E162: Возраст: с 11 до 18 лет
A163: № | B163: Наименование блюда | E163: масса | F163: Пищевые вещества (г) | I163: энерге- | J163: Витамины | M163: Минеральные вещества (мг)
A164: рец. | E164: порций | F164: Б | G164: Ж | H164: У | I164: тическая | J164: В1 | K164: С | L164: А | M164: Са | N164: Р | O164: Мg | P164: Fe
I165: ценность
B166: Завтрак
A167: 401.08 | B167: Масло сливочное | E167: 10 | F167: 0.08 | G167: 6.8 | H167: 0.15 | I167: 55.9 | J167: 0 | K167: 0.105 | L167: 31.5 | M167: 150 | N167: 90 | O167: 8.25 | P167: 0.105
A168: 211.56 | B168: Макаронные изделия с тертым сыром | E168: 200 | F168: 14.9 | G168: 16.8 | H168: 43 | I168: 388 | J168: 0.09 | K168: 0.2 | L168: 28.8 | M168: 306.91 | N168: 55.51 | O168: 26.05 | P168: 1.21
A169: 289 | B169: Какао с молоком | E169: 200 | F169: 3.6 | G169: 3.3 | H169: 13.7 | I169: 98 | J169: 0.03 | K169: 0.52 | L169: 0 | M169: 110.37 | N169: 0 | O169: 26.97 | P169: 0.88
A170: 420.02 | B170: Хлеб пшеничный, ржаной | E170: 50 | F170: 4 | G170: 0.5 | H170: 27.5 | I170: 130 | J170: 0.07 | K170: 0 | L170: 0 | M170: 9.2 | N170: 34.8 | O170: 13.2 | P170: 0.8
A171: 38 | B171: Фрукты | E171: 200 | F171: 1 | G171: 0 | H171: 7 | I171: 34 | J171: 0.05 | K171: 34.2 | L171: 0 | M171: 31.5 | N171: 15.3 | O171: 9.9 | P171: 0.09
B172: Итого за завтрак | F172: =SUM(F167:F171) -> 23.58 | G172: 27.4 | H172: 91.35 | I172: 705.9 | J172: 0.24 | K172: 35.025 | L172: 60.3 | M172: 607.98 | N172: 195.61 | O172: 84.37 | P172: 3.085
B173: Обед
A174: 56.21 | B174: Суп с мелкошинкованными овощами со сметаной | E174: 250 | F174: 2.14 | G174: 5.76 | H174: 11.48 | I174: 107.06 | J174: 0.22 | K174: 9.74 | L174: 0.11 | M174: 35.39 | N174: 190.3 | O174: 43.15 | P174: 3.26
A175: 3 | B175: Фрикадельки мясные пф | E175: 70/40 | F175: 16.5 | G175: 24.9 | H175: 9 | I175: 325 | J175: 0.1 | K175: 18.32 | L175: 51.16 | M175: 56.6 | N175: 197.58 | O175: 39 | P175: 2.25
A176: 610.03 | B176: Рис припущенный | E176: 180 | F176: 7.2 | G176: 6 | H176: 43.2 | I176: 254.4 | J176: 0.108 | K176: 0 | L176: 28.8 | M176: 13.38 | N176: 55.51 | O176: 9.82 | P176: 0.99
A177: 283 | B177: Чай с сахаром | E177: 200 | F177: 0 | G177: 0 | H177: 9.1 | I177: 35 | J177: 0 | K177: 0 | L177: 0 | M177: 0.26 | N177: 0 | O177: 0 | P177: 0.03
A178: 420.02 | B178: Хлеб пшеничный (для детского питания) | E178: 25 | F178: 2 | G178: 0 | H178: 12 | I178: 59 | J178: 0.04 | K178: 0 | L178: 0 | M178: 5.75 | N178: 21.75 | O178: 8.25 | P178: 0.5
A179: 421.11 | B179: Хлеб ржаной (для детского питания) | E179: 25 | F179: 2 | G179: 0 | H179: 10 | I179: 50 | J179: 0.04 | K179: 0 | L179: 0 | M179: 7.25 | N179: 32.5 | O179: 10.5 | P179: 0.9
B180: Итого за обед | F180: =SUM(F174:F179) -> 29.84 | G180: 36.66 | H180: 94.78 | I180: 830.46 | J180: 0.508 | K180: 28.06 | L180: 80.07 | M180: 118.63 | N180: 497.64 | O180: 110.72 | P180: 7.93
B181: Итого за день | F181: 68.93 | G181: 52.8 | H181: 191.48 | I181: 1605.21 | J181: 0.958 | K181: 67.28 | L181: 146.16 | M181: 410.43 | N181: 977.97 | O181: 304.51 | P181: 15.165
A191: День: вторник | E191: Сезон: 01.09 - 01.03 (2021 - 2022 г)
A192: Неделя: 2 | E192: Возраст: с 11 до 18 лет
A193: № | B193: Наименование блюда | E193: масса | F193: Пищевые вещества (г) | I193: энерге- | J193: Витамины | M193: Минеральные вещества (мг)
A194: рец. | E194: порций | F194: Б | G194: Ж | H194: У | I194: тическая | J194: В1 | K194: С | L194: А | M194: Са | N194: Р | O194: Мg | P194: Fe
I195: ценность
B196: Завтрак
A197: 2 | B197: Тефтели из говядины с томатным соусом | E197: 80 | F197: 9 | G197: 4 | H197: 9 | I197: 108 | J197: 0.05 | K197: 0.3 | L197: 0 | M197: 26.6 | N197: 121.66 | O197: 17.48 | P197: 0.46
A198: 175.11 | B198: Каша гречневая вязкая с маслом | E198: 180 | F198: 3 | G198: 6 | H198: 22 | I198: 153 | J198: 0.17 | K198: 26.11 | L198: 28.8 | M198: 43.14 | N198: 98.22 | O198: 33.03 | P198: 1.2
A199: 283 | B199: Чай с сахаром | E199: 200 | F199: 0 | G199: 0 | H199: 9.1 | I199: 35 | J199: 0 | K199: 0 | L199: 0 | M199: 0.26 | N199: 0 | O199: 0 | P199: 0.03
A200: 420.02 | B200: Хлеб пшеничный, ржаной (для детского питания) | E200: 50 | F200: 2.9 | G200: 0 | H200: 18.9 | I200: 95.6 | J200: 0.09 | K200: 0 | L200: 0 | M200: 10.2 | N200: 35.8 | O200: 14.2 | P200: 1
A201: 476.01 | B201: Кисломолочный продукт для детского питания | E201: 200 | F201: 1 | G201: 0 | H201: 7 | I201: 34 | J201: 0.05 | K201: 34.2 | L201: 0 | M201: 31.5 | N201: 15.3 | O201: 9.9 | P201: 0.09
B202: Итого за завтрак | F202: =SUM(F197:F201) -> 15.9 | G202: 10 | H202: 66 | I202: 425.6 | J202: 0.36 | K202: 60.61 | L202: 28.8 | M202: 111.7 | N202: 270.98 | O202: 74.61 | P202: 2.78
B203: Обед
A204: 25.23 | B204: Салат из свеклы с растительным маслом | E204: 80 | F204: 1 | G204: 6 | H204: 5 | I204: 80 | J204: 0.03 | K204: 2.64 | L204: 0 | M204: 14.31 | N204: 29.16 | O204: 20.06 | P204: 0.38
A205: 66.63 | B205: Суп-лапшпа | E205: 250 | F205: 3 | G205: 5 | H205: 15 | I205: 121 | J205: 0.07 | K205: 15.21 | L205: 7.5 | M205: 32.53 | N205: 57.52 | O205: 25.98 | P205: 1.27
A206: 1 | B206: Котлеты | E206: 60/40 | F206: 9 | G206: 11 | H206: 2 | I206: 144 | J206: 0.04 | K206: 1.62 | L206: 0 | M206: 8.79 | N206: 101.41 | O206: 15.23 | P206: 1.46
A207: 170 | B207: Пюре гороховое | E207: 150/5 | F207: 8.1 | G207: 7.2 | H207: 48.2 | I207: 295 | J207: 0.09 | K207: 0 | L207: 0 | M207: 14.03 | N207: 0 | O207: 11.09 | P207: 1.12
A208: 283 | B208: Чай с сахаром | E208: 200 | F208: 0 | G208: 0 | H208: 9.1 | I208: 35 | J208: 0 | K208: 0 | L208: 0 | M208: 0.26 | N208: 0 | O208: 0 | P208: 0.03
A209: 420.06 | B209: Хлеб пшеничный (для детского питания) | E209: 25 | F209: 2 | G209: 0 | H209: 12 | I209: 59 | J209: 0.04 | K209: 0 | L209: 0 | M209: 5.75 | N209: 21.75 | O209: 8.25 | P209: 0.5
A210: 421.11 | B210: Хлеб ржаной (для детского питания) | E210: 25 | F210: 2 | G210: 0 | H210: 10 | I210: 50 | J210: 0.04 | K210: 0 | L210: 0 | M210: 7.25 | N210: 32.5 | O210: 10.5 | P210: 0.9
B211: Итого за обед | F211: =SUM(F204:F210) -> 25.1 | G211: 29.2 | H211: 101.3 | I211: 784 | J211: 0.31 | K211: 19.47 | L211: 7.5 | M211: 82.92 | N211: 242.34 | O211: 91.11 | P211: 5.66
B212: Итого за день | F212: 41.8 | G212: 42 | H212: 179.5 | I212: 1281.6 | J212: 0.675 | K212: 105.48 | L212: 52.26 | M212: 317.57 | N212: 721.83 | O212: 221.52 | P212: 9.96
A222: День: среда | E222: Сезон: 01.09 - 01.03 (2021 - 2022 г)
A223: Неделя: 2 | E223: Возраст: с 11 до 18 лет
A224: № | B224: Наименование блюда | E224: масса | F224: Пищевые вещества (г) | I224: энерге- | J224: Витамины | M224: Минеральные вещества (мг)
A225: рец. | E225: порций | F225: Б | G225: Ж | H225: У | I225: тическая | J225: В1 | K225: С | L225: А | M225: Са | N225: Р | O225: Мg | P225: Fe
I226: ценность
B227: Завтрак
A228: 401.08 | B228: Масло сливочное | E228: 10 | F228: 0.08 | G228: 6.8 | H228: 0.15 | I228: 55.9 | J228: 0 | K228: 0.105 | L228: 31.5 | M228: 150 | N228: 90 | O228: 8.25 | P228: 0.105
A229: 1 | B229: Котлеты из говядины | E229: 80/40 | F229: 16.2 | G229: 14.5 | H229: 13.9 | I229: 252 | J229: 0.07 | K229: 0.29 | L229: 40.5 | M229: 34.65 | N229: 162.2 | O229: 28.56 | P229: 1.48
A230: 78.03 | B230: Каша ячневая рассыпчатая | E230: 150 | F230: 14.6 | G230: 24.1 | H230: 2.6 | I230: 285 | J230: 0.07 | K230: 0.22 | L230: 40 | M230: 100.23 | N230: 3 | O230: 16.81 | P230: 2.5
A231: 283 | B231: Чай с сахаром | E231: 200 | F231: 0 | G231: 0 | H231: 9.1 | I231: 35 | J231: 0 | K231: 0 | L231: 0 | M231: 0.26 | N231: 0 | O231: 0 | P231: 0.03
A232: 1.1 | B232: Хлеб пшеничный, ржаной (для детского питания) | E232: 50 | F232: 2.9 | G232: 0 | H232: 18.9 | I232: 95.6 | J232: 0.09 | K232: 0 | L232: 0 | M232: 10.2 | N232: 35.8 | O232: 14.2 | P232: 1
B233: Фрукты | E233: 200 | F233: 1 | G233: 0 | H233: 7 | I233: 34 | J233: 0.05 | K233: 34.2 | L233: 0 | M233: 31.5 | N233: 15.3 | O233: 9.9 | P233: 0.09
B234: Итого за завтрак | F234: =SUM(F228:F233) -> 34.78 | G234: 45.4 | H234: 51.65 | I234: 757.5 | J234: 0.28 | K234: 34.815 | L234: 112 | M234: 326.84 | N234: 306.3 | O234: 77.72 | P234: 5.205
B235: Обед
A236: 76.02 | B236: Салат из моркови | E236: 80 | F236: 1 | G236: 6 | H236: 5 | I236: 80 | J236: 0.03 | K236: 2.64 | L236: 0 | M236: 14.31 | N236: 29.16 | O236: 20.06 | P236: 0.38
A237: 53.39 | B237: Щи из свежей капусты со сметаной | E237: 250/5 | F237: 3 | G237: 5 | H237: 15 | I237: 121 | J237: 0.07 | K237: 15.21 | L237: 7.5 | M237: 32.53 | N237: 57.52 | O237: 25.98 | P237: 1.27
A238: 2 | B238: Тефтели мясные пф | E238: 80/40 | F238: 13 | G238: 16 | H238: 39 | I238: 350 | J238: 0.08 | K238: 1.35 | L238: 0 | M238: 14.02 | N238: 178.97 | O238: 41.8 | P238: 1.97
A239: 211.05 | B239: Макаронные изделия отварные с маслом | E239: 180 | F239: 3 | G239: 6 | H239: 22 | I239: 153 | J239: 0.17 | K239: 26.11 | L239: 28.8 | M239: 43.14 | N239: 98.22 | O239: 33.03 | P239: 1.2
A240: 294 | B240: Компот из сухофруктов | E240: 200 | F240: 0 | G240: 0 | H240: 16 | I240: 67 | J240: 0.01 | K240: 20.2 | L240: 0 | M240: 6.76 | N240: 4.4 | O240: 3.6 | P240: 0.92
A241: 420.02 | B241: Хлеб пшеничный (для детского питания) | E241: 25 | F241: 2 | G241: 0 | H241: 12 | I241: 59 | J241: 0.04 | K241: 0 | L241: 0 | M241: 5.75 | N241: 21.75 | O241: 8.25 | P241: 0.5
A242: 421.11 | B242: Хлеб ржаной (для детского питания) | E242: 25 | F242: 2 | G242: 0 | H242: 10 | I242: 50 | J242: 0.04 | K242: 0 | L242: 0 | M242: 7.25 | N242: 32.5 | O242: 10.5 | P242: 0.9
B243: Итого за обед | F243: =SUM(F236:F242) -> 24 | G243: 33 | H243: 119 | I243: 880 | J243: 0.44 | K243: 65.51 | L243: 36.3 | M243: 123.76 | N243: 422.52 | O243: 143.22 | P243: 7.14
B244: Итого за день | F244: 38.8 | G244: 43 | H244: 214.5 | I244: 1429.6 | J244: 0.645 | K244: 85.5 | L244: 91.31 | M244: 292.27 | N244: 637.07 | O244: 190.21 | P244: 8.99
A257: День: четверг | E257: Сезон: 01.09 - 01.03 (2021 - 2022 г)
A258: Неделя: 2 | E258: Возраст: с 11 до 18 лет
A259: № | B259: Наименование блюда | E259: масса | F259: Пищевые вещества (г) | I259: энерге- | J259: Витамины | M259: Минеральные вещества (мг)
A260: рец. | E260: порций | F260: Б | G260: Ж | H260: У | I260: тическая | J260: В1 | K260: С | L260: А | M260: Са | N260: Р | O260: Мg | P260: Fe
I261: ценность
B262: Завтрак
A263: 27.01 | B263: Сыр (порциями) | E263: 15 | F263: 4.5 | G263: 4.5 | H263: 0 | I263: 54 | J263: 0 | K263: 0.105 | L263: 31.5 | M263: 150 | N263: 90 | O263: 8.25 | P263: 0.105
A264: 3 | B264: Фрикадельки мясные с томатным соусом | E264: 70/40 | F264: 11.3 | G264: 9.3 | H264: 8.2 | I264: 162 | J264: 0.04 | K264: 0.02 | L264: 29.25 | M264: 23.84 | N264: 240.53 | O264: 20.99 | P264: 0.92
A265: 138.06 | B265: Картофельное пюре | E265: 200 | F265: 4.5 | G265: 7.2 | H265: 29.4 | I265: 203 | J265: 0.17 | K265: 15.22 | L265: 6.2 | M265: 52.21 | N265: 166.16 | O265: 41.66 | P265: 1.51
A266: 285 | B266: Чай с лимоном и сахаром | E266: 200 | F266: 0.1 | G266: 0 | H266: 9.3 | I266: 37 | J266: 0 | K266: 1.12 | L266: 0 | M266: 2.73 | N266: 0 | O266: 0.73 | P266: 0.06
A267: 420.02 | B267: Хлеб пшеничный, ржаной | E267: 40 | F267: 2.7 | G267: 0 | H267: 18.7 | I267: 94.7 | J267: 0.07 | K267: 0 | L267: 0 | M267: 9.2 | N267: 34.8 | O267: 13.2 | P267: 0.8
B268: Итого за завтрак | F268: =SUM(F263:F267) -> 23.1 | G268: 21 | H268: 65.6 | I268: 550.7 | J268: 0.28 | K268: 16.465 | L268: 66.95 | M268: 237.98 | N268: 531.49 | O268: 84.83 | P268: 3.395
B269: Обед
A270: 2.1 | B270: Салат из белокочанной капусты с морковью | E270: 80 | F270: 1 | G270: 6 | H270: 6 | I270: 82 | J270: 0.02 | K270: 22.98 | M270: 25.9 | N270: 19.04 | O270: 10.34 | P270: 0.35
A271: 67.32 | B271: Свекольник со сметаной | E271: 250/5 | F271: 2 | G271: 5.1 | H271: 13.7 | I271: 108 | J271: 0.05 | K271: 4.84 | L271: 7.62 | M271: 28.27 | N271: 171.85 | O271: 24.9 | P271: 1.21
A272: 423.18 | B272: Тефтели рыбные с томатным соусом | E272: 80/40 | F272: 12.7 | G272: 8.5 | H272: 12.2 | I272: 177 | J272: 0.11 | K272: 0.3 | L272: 51.16 | M272: 37.03 | N272: 197.58 | O272: 23.72 | P272: 0.78
A273: 175.11 | B273: Каша гречневая вязкая с маслом | E273: 180/10 | F273: 3 | G273: 6 | H273: 22 | I273: 153 | J273: 0.17 | K273: 26.11 | L273: 28.8 | M273: 43.14 | N273: 98.22 | O273: 33.03 | P273: 1.2
A274: 305.11 | B274: Витаминизированный кисель | E274: 200 | F274: 0 | G274: 0 | H274: 16 | I274: 67 | J274: 0.01 | K274: 20.2 | L274: 0 | M274: 6.76 | N274: 4.4 | O274: 3.6 | P274: 0.92
A275: 420.05 | B275: Хлеб пшеничный (для детского питания) | E275: 25 | F275: 2.5 | G275: 0 | H275: 13 | I275: 59 | J275: 0.04 | K275: 0 | L275: 0 | M275: 5.75 | N275: 21.75 | O275: 8.25 | P275: 0.5
A276: 421.11 | B276: Хлеб ржаной (для детского питания) | E276: 25 | F276: 2.5 | G276: 0 | H276: 11 | I276: 50 | J276: 0.04 | K276: 0 | L276: 0 | M276: 7.25 | N276: 32.5 | O276: 10.5 | P276: 0.9
B277: Итого за обед | F277: =SUM(F270:F276) -> 23.7 | G277: 25.6 | H277: 93.9 | I277: 696 | J277: 0.44 | K277: 74.43 | L277: 87.58 | M277: 154.1 | N277: 545.34 | O277: 114.34 | P277: 5.86
B278: Итого за день | F278: 59.2 | G278: 58.5 | H278: 126.7 | I278: 1293.7 | J278: 0.68 | K278: 95.45 | L278: 129.53 | M278: 509.89 | N278: 906.35 | O278: 195.84 | P278: 11.055
A288: День: пятница | E288: Сезон: 01.09 - 01.03 (2021 - 2022 г)
A289: Неделя: 2 | E289: Возраст: с 11 до 18 лет
A290: № | B290: Наименование блюда | E290: масса | F290: Пищевые вещества (г) | I290: энерге- | J290: Витамины | M290: Минеральные вещества (мг)
... 21 more rows

Sheet Лист3
